Cogmind - Beta 13 @@@ ROGUE MODE // 2024.04.10 @ 08:58:44 Player: RD-BKR Result: Destroyed by G-47 Trooper with Particle Gun Performance ------------- Evolutions (0) 0 Regions Visited (2) 400 Robots Destroyed (17) 85 Value Destroyed (485) 485 Prototype IDs (2) 40 Alien Tech Used (0) 0 Bonus (0) 0 TOTAL SCORE: 1010 Bonus ------- None Cogmind --------- Core Integrity 0/250 Matter 256/300 Energy 250/250 System Corruption 0% Temperature Cool (33) Movement Treading (160) Location -10/Mines Parts ------- > --- POWER (1) -------- Ion Engine > --- PROPULSION (2) --- Improved Treads Improved Treads > --- UTILITY (2) ------ Small Storage Unit Hacking Suite > --- WEAPON (2) ------- EM Shotgun Grenade Launcher > --- INVENTORY (8) ---- Light Ion Engine Improved Treads Improved Treads EM Shotgun Light Assault Rifle Datajack Mining Claw Peak State ------------ > --- POWER ------------ Ion Engine > --- PROPULSION ------- Improved Treads Improved Treads > --- UTILITY ---------- Small Storage Unit Hacking Suite > --- WEAPON ----------- EM Shotgun Light Assault Rifle > --- INVENTORY -------- Light Ion Engine Improved Treads Improved Treads EM Shotgun Grenade Launcher Datajack Hammer [Rating: 13] Favorites ----------- Power Ion Engine Engine Ion Engine Power Core Light Nuclear Core Propulsion Improved Treads Treads Improved Treads Leg Aluminum Leg Wheel Compact Wheel Flight Unit Flight Unit Utility Small Storage Unit Device Improved Heat Sink Storage Small Storage Unit Hackware Hacking Suite Weapon Light Assault Rifle Energy Gun EM Shotgun Ballistic Gun Light Assault Rifle Launcher Grenade Launcher Impact Weapon Hammer Slashing Weapon Mining Claw Build | -11 -10 -10 ------- Run | Yrd Mat Min Slots Evolved . | . . . Power . | . . . Propulsion . | . . . Utility . | . . . Weapon . | . . . Parts Attached 27 | . 22 5 Power 2 | . 2 . Engine 1 | . 1 . Core 1 | . 1 . Reactor . | . . . Propulsion 8 | . 8 . Treads 5 | . 5 . Leg . | . . . Wheel 2 | . 2 . Hover . | . . . Flight 1 | . 1 . Utility 2 | . 2 . Device 1 | . 1 . Storage . | . . . Processor . | . . . Hackware 1 | . 1 . Protection . | . . . Artifact . | . . . Weapon 15 | . 10 5 Energy Gun 5 | . 4 1 Energy Cannon . | . . . Ballistic Gun 4 | . 3 1 Ballistic Cannon . | . . . Launcher 2 | . . 2 Special Weapon . | . . . Impact Weapon 3 | . 3 . Slashing Weapon 1 | . . 1 Piercing Weapon . | . . . Special Melee Weapon . | . . . Unidentified Prototypes . | . . . Parts Lost 3 | . 3 . Power 1 | . 1 . Propulsion 2 | . 2 . Utility . | . . . Weapon . | . . . Highest Loss Streak 3 | . 3 . To Critical Strikes . | . . . Average Slot Usage (%) 92 | . 91 100 Engine 9 | . 9 14 Treads 20 | . 19 28 Leg 1 | . 1 . Wheel 2 | . 3 . Flight 2 | . 2 . Device 3 | . 4 . Storage 14 | . 14 14 Hackware 7 | . 6 14 Energy Gun 10 | . 9 10 Ballistic Gun 14 | . 15 6 Launcher 1 | . . 8 Impact Weapon 2 | . 2 . Naked Turns . | . . . Heaviest Build 16 | 13 14 16 Greatest Support 46 | 20 46 46 Greatest Overweight (x) 2 | . 2 . Average Overweight (x) . | . . . Largest Inventory Capacity 8 | . 8 8 Average Capacity 8 | . 8 8 Most Carried 8 | . 8 7 Average Carried 7 | . 7 7 Final Capacity 8 | 8 8 8 Final Carried 7 | 6 7 7 Class Distribution -------------------- 100% | Mutant Dominant Class ---------------- Mutant | -10/Materials Mutant | -10/Mines Resources | -11 -10 -10 ----------- Run | Yrd Mat Min Matter Collected 469 | 182 230 57 Remotely . | . . . Salvage Created 547 | . 394 153 Parts 25 | . 18 7 Haulers Intercepted . | . . . Recyclers Shooed . | . . . Parts Field Recycled . | . . . Retrieved Matter . | . . . Parts Self-Destructed . | . . . Prevented . | . . . Kills | -11 -10 -10 ------- Run | Yrd Mat Min Combat Hostiles Destroyed 15 | . 11 4 Melee 3 | . 3 . Guns 9 | . 7 2 AOE 1 | . . 1 Classes Destroyed 3 | . 3 . Operator 2 | . 2 . Swarmer 4 | . 3 1 Grunt 11 | . 8 3 Best Kill Streak 4 | . 4 2 Combat Bots Only 4 | . 4 2 Max Kills in Single Turn 1 | . 1 1 Gunslinging . | . . . Exploded 1 | . . 1 Melee 1 | . 1 . Uniques/NPCs Destroyed . | . . . Combat | -11 -10 -10 -------- Run | Yrd Mat Min Hostile Shots Fired 115 | . 94 21 Missed 26 | . 19 7 Damage Taken 1030 | . 845 185 Core 250 | . 181 69 Absorbed by Shields . | . . . Core Remaining (%) 100 | 100 . . Volleys Fired 46 | . 36 10 Largest 2 | . 2 2 Hottest 75 | . 70 75 Shots Fired 91 | . 71 20 Gun 90 | . 71 19 Cannon . | . . . Launcher 1 | . . 1 Special . | . . . Kinetic 46 | . 37 9 Thermal 29 | . 29 . Explosive 1 | . . 1 Electromagnetic 15 | . 5 10 Robot Hit Streak 17 | . 6 17 Robot Miss Streak 4 | . 4 3 Penetration Max . | . . . Secondary Targets 3 | . 2 1 Max Gunslinging Chain 1 | . 1 1 Shots Hit Robots 71 | . 55 16 Core Hits 36 | . 24 12 Critical Kills . | . . . Critical Parts Destroyed 3 | . 3 . Critical Strikes 6 | . 6 . Burn 3 | . 3 . Smash 3 | . 3 . Melee Attacks 22 | . 22 . Impact 22 | . 22 . Slashing . | . . . Piercing . | . . . Sneak Attacks . | . . . Combat Hostiles . | . . . Follow-up Attacks . | . . . Damage Inflicted 1079 | . 781 298 Guns 760 | . 544 216 Cannons . | . . . Explosions 109 | . 27 82 Melee 210 | . 210 . Ramming . | . . . Kinetic 244 | . 185 59 Thermal 316 | . 316 . Explosive 82 | . . 82 Electromagnetic 227 | . 70 157 Impact 210 | . 210 . Slashing . | . . . Piercing . | . . . Highest Corruption . | . . . Average Corruption . | . . . Corruption Purged . | . . . Corruption Blocked . | . . . Overload Shots . | . . . Overflow Damage 101 | . 101 . Projectiles . | . . . Explosions . | . . . Melee 101 | . 101 . Knockbacks 1 | . 1 . Impact 1 | . 1 . Kinetic . | . . . Secondary . | . . . Self-Inflicted Damage . | . . . Shots . | . . . Rammed . | . . . Targets Rammed . | . . . Kicked . | . . . Crushed . | . . . Highest Temperature 333 | . 333 159 Average Temperature 110 | . 122 67 Received Heat Transfer 549 | . 444 105 Effects 3 | . 3 . Energy Bleed 1 | . 1 . Interference 2 | . 2 . Siege Activations . | . . . Robots Corrupted 1 | . . 1 Combat Hostiles 1 | . . 1 Parts Fried 5 | . 5 . Impact Corruptions 4 | . 4 . Robots Melted . | . . . Combat Hostiles . | . . . Parts Melted 1 | . 1 . Heat Transferred 1073 | . 1073 . Parts Sabotaged . | . . . Parts Stolen . | . . . Parts Stripped . | . . . Power Chain Reactions 1 | . 1 . Alert | -11 -10 -10 ------- Run | Yrd Mat Min Peak Influence 261 | . 261 145 Initial 3 | . . 3 Average 91 | . 94 75 Maximum Alert Level 1 | . 1 . Low Security (%) 88 | . 86 100 Level 1 11 | . 13 . Level 2 . | . . . Level 3 . | . . . Level 4 . | . . . Level 5 . | . . . High Security . | . . . Max Security . | . . . Squads Dispatched 3 | . 3 . Investigation 1 | . 1 . Extermination . | . . . Reinforcement 2 | . 2 . Assault . | . . . Garrison . | . . . Intercept . | . . . Searches Triggered . | . . . Construction Impeded . | . . . Haulers Reinforced . | . . . Active Scanning Responses . | . . . Cargo Convoy Interrupts . | . . . Stealth | -11 -10 -10 --------- Run | Yrd Mat Min Distress Signals 5 | . 5 . Communications Jammed . | . . . Distress Signals . | . . . Times Spotted 33 | . 24 9 Peak Tracking Total 8 | . 8 4 Tactical Retreats 1 | . . 1 Traps | -11 -10 -10 ------- Run | Yrd Mat Min Traps Triggered 2 | . 2 . Indirectly . | . . . Trap Hack Attempts . | . . . Triggered . | . . . Disarmed . | . . . Reprogrammed . | . . . Reused . | . . . Traps Extracted . | . . . Installed . | . . . Triggered . | . . . Machines | -11 -10 -10 ---------- Run | Yrd Mat Min Machines Disabled . | . . . Max in Single Turn . | . . . Machines Repaired . | . . . Machines Dismantled . | . . . Machines Sabotaged . | . . . Overloaded Fab Kills . | . . . Hacking | -11 -10 -10 --------- Run | Yrd Mat Min Machines Accessed 8 | . 8 . Terminals 6 | . 6 . Fabricators . | . . . Repair Stations . | . . . Recycling Units 2 | . 2 . Scanalyzers . | . . . Garrison Access . | . . . Total Hacks 19 | . 19 . Successful 9 | . 9 . Failed 10 | . 10 . Catastrophic 3 | . 3 . Database Lockouts . | . . . Manual 16 | . 16 . Terminals 17 | . 17 . Fabricators . | . . . Repair Stations . | . . . Recycling Units 2 | . 2 . Scanalyzers . | . . . Garrison Access . | . . . Terminal Hacks 5 | . 5 . Prototype ID Bank 1 | . 1 . Terminal Index 1 | . 1 . Locate Traps 2 | . 2 . Recall Investigation 1 | . 1 . Fabricator Hacks . | . . . Repair Station Hacks . | . . . Recycling Unit Hacks 2 | . 2 . Report Inventory 1 | . 1 . Retrieve Components 1 | . 1 . Scanalyzer . | . . . Garrison Access Hacks . | . . . Unauthorized Hacks 2 | . 2 . Terminals 2 | . 2 . Botnet 2 | . 2 . Fabricators . | . . . Repair Stations . | . . . Recycling Units . | . . . Scanalyzers . | . . . Garrison Access . | . . . Data Cores Recovered . | . . . Used . | . . . Hacking Detections 6 | . 6 . Full Trace Events . | . . . Feedback Events . | . . . Feedback Blocked . | . . . Robot Schematics Acquired . | . . . Robots Built . | . . . Authchips . | . . . Time . | . . . Total Robot Build Rating . | . . . Part Schematics Acquired . | . . . Parts Built . | . . . Authchips . | . . . Time . | . . . Total Part Build Rating . | . . . Parts Repaired . | . . . Time . | . . . Parts Recycled . | . . . Recycled Matter . | . . . Retrieved Matter . | . . . Retrieved Components 9 | . 9 . Parts Scanalyzed . | . . . Part Schematics Acquired . | . . . Parts Damaged . | . . . Bothacking | -11 -10 -10 ------------ Run | Yrd Mat Min Used RIF Installer . | . . . Robots Hacked . | . . . Non-combat . | . . . Combat . | . . . Robot Hacks Applied . | . . . Relay Couplers Released . | . . . Fabnet Peak Effective % . | . . . Robots Rewired . | . . . Allies Hacked . | . . . Hacks Repelled . | . . . Allies | -11 -10 -10 -------- Run | Yrd Mat Min Total Allies . | . . . Largest Group . | . . . Highest-Rated Group . | . . . Highest-Rated Ally . | . . . Total Orders . | . . . Ally Attacks . | . . . Total Damage . | . . . Kills . | . . . Allies Corrupted . | . . . Allies Melted . | . . . Intel | -11 -10 -10 ------- Run | Yrd Mat Min Robot Analysis Total . | . . . Derelict Logs Recovered . | . . . Drone Launches . | . . . Drone Recoveries . | . . . Exploration | -11 -10 -10 ------------- Run | Yrd Mat Min Turns Passed 1053 | . 923 130 Spaces Moved 519 | 1 473 45 Core 2 | . 2 . Treads 320 | . 275 45 Legs 33 | 1 32 . Wheels 138 | . 138 . Hover . | . . . Flight 26 | . 26 . Fastest Speed 100 | 120 100 160 Average Speed 139 | 120 137 160 Slowest Speed 160 | 120 160 160 Overloaded Moves . | . . . Propulsion Burnouts . | . . . Robots Hopped . | . . . Cave-ins Triggered . | . . . Exploration Rate (%) 33 | 2 87 10 Regions Visited 2 Branch Regions 1 Pre-discovered Areas . | . . . Known Exits Taken . | . . . Unknown Exits Taken 2 | 1 1 . Scrap Searched . | . . . Spaces Dug 5 | . 5 . Terrain Destroyed 20 | . 8 12 Melee 5 | . 5 . Projectile . | . . . AOE 15 | . 3 12 Terrain Rammed . | . . . Walls Destroyed . | . . . Machines Disabled . | . . . Actions | -11 -10 -10 --------- Run | Yrd Mat Min Total 722 | . 640 82 Wait 86 | . 64 22 Move 517 | . 472 45 Hop . | . . . Pick Up 11 | . 11 . Fast Attach 7 | . 7 . Attach 2 | . 2 . Detach . | . . . Swap 18 | . 13 5 Drop 13 | . 13 . Fire 46 | . 36 10 Melee 22 | . 22 . Ram . | . . . Kick . | . . . Crush . | . . . Escape Stasis . | . . . Rewire . | . . . Trap . | . . . Miscellaneous . | . . . Route ------- -11/Scrapyard -10/Materials (discovered 4 exits: [*Mat x2] / [*Min x2]) -10/Mines (discovered 1 exit: [*Mat]) History --------- Turn | Location | Event 1 | -11/Scrapyard | Discovered new exit (range 0) 1 | -11/Scrapyard | Entered Materials 206 | -10/Materials | Core integrity fell below 50% 310 | -10/Materials | Build established: Mutant 327 | -10/Materials | Lost 3 parts (1p2n) 377 | -10/Materials | Discovered new exit (range 14) 462 | -10/Materials | Discovered new exit (range 4) 649 | -10/Materials | Discovered new exit (range 6) 881 | -10/Materials | Discovered new exit (range 16) 924 | -10/Materials | Entered Mines 941 | -10/Mines | Core integrity fell below 20% 986 | -10/Mines | Discovered new exit (range 6) 1054 | -10/Mines | Destroyed by G-47 Trooper with Particle Gun Last Messages --------------- Something is scanning the area. 00927_ G-34 Mercenary destroyed. 00927_ Switching to secondary target: G-47 Trooper. 00934_ Critical hit (Burn: +37). 00945_ G-47 Trooper system terminally corrupted. 00948_ Acquired 35 matter. 00950_ Acquired 5 matter. 00955_ R-06 Scavenger collects Heat Sink. 00956_ R-06 Scavenger collects Corrupted Aluminum Leg. 00986_ EXIT=FOUND 00994_ S-10 Pest destroyed. 00997_ R-06 Scavenger collects Flight Unit. 00999_ R-06 Scavenger collects Corrupted Lgt. Assault Rifle. 01002_ R-06 Scavenger collects Lgt. Ion Engine. 01030_ Acquired 17 matter. 01051_ G-34 Mercenary destroyed. 01052_ U-05 Engineer builds a Wall. Map ----- +----------------------------------------------------+ | | | | | | | | | | | | | | | | | | | | | | | ????????????????????????????????????????????????? | | ????????????????????????????????????????????????? | | ??????????????????????????????????????##########? | | ??????????????????????????????????????# % #? | | ???????????????????????????????????#### #? | | ???????????????????????????????????# #? | | ???????????????????????????????????# ## #? | | ???????????????????????????????????# ## #? | | ????????????????????????####?????### ## #? | | ???????????????????????## #????## ## #? | | ???????????????????????# t#????# ###########? | | ?????????????######???### t####?# ##????##???? | | ???????????? # ### #?## ## #???? | | ?????????? g u #### #???? | | ?????????? ss=u @ < #???? | | ??????????????# ### ##### ##???? | | ??????????????????????# #???#### ###????? | | ??????????????????????#########??????? ##??????? | | ?????????????????????????????????????? #???????? | | ??????????????????????????????????????? #???????? | | ??????????????????????????????????????? #???????? | | ??????????????????????????????????????? ???????? | | ???????????????????????????????????????? ???????? | | ????????????????????????????????????????? ??????? | | ????????????????????????????????????????????????? | | ????????????????????????????????????????????????? | | ????????????????????????????????????????????????? | | ????????????????????????????????????????????????? | | ????????????????????????????????????????????????? | | ????????????????????????????????????????????????? | | ????????????????????????????????????????????????? | | ????????????????????????????????????????????????? | | ????????????????????????????????????????????????? | | ????????????????????????????????????????????????? | | ????????????????????????????????????????????????? | | ????????????????????????????????????????????????? | | ????????????????????????????????????????????????? | | ????????????????????????????????????????????????? | | ????????????????????????????????????????????????? | +----------------------------------------------------+ Best States ------------- Heat Dissipation 39 Energy Generation 14 Energy Capacity 250 Matter Stores 300 Matter Capacity 300 Sight Range 16 Terrain Scan Density 10 Evasion (%) 55 Recoil Reduction 2 Offensive Hacking 10 Item Schematics ----------------- None Robot Schematics ------------------ None Fabricated ------------ Nothing Alien Tech Used ----------------- None Achievements -------------- None Challenges ------------ None Game ------ Seed EncryptedRegenerativeBox Manual? 0 Play Time 00:20:43 Cumulative 43.6 hours Start 2024.04.10 @ 08:37:26 End 2024.04.10 @ 08:58:44 Sessions 1 Manual Loads 0 Difficulty Rogue Special Mode None Game No. 76 Rogue 76 Adventurer 0 Explorer 0 Win Type - Total 0 Types 0/0/0/0/0/0/0/0/0 Lore% 23 Gallery% 24 Achievement% 25 Wizard Run 0 Options --------- Layout 1 ASCII 0 Keyboard 0 Movement Mouse Keybinds 0 Fullscreen 2 Font 24/Smallcaps Map View 50x35 Zoom Use 0% Tactical HUD 1 Map Filters NONE Filters NONE Steam 1 RUN: 92bee62c-85f6-42fa-81da-ba83237b98ae